fUSD/lending_fUSD_20240614
["ID","MTS","AMOUNT","RATE_DAILY","PERIOD"]
[329501320,1718400665085,-1146.0,0.00021917,2]
[329501322,1718400665108,-527.93170846,0.00021917,2]
[329501324,1718400665122,-500.0,0.00021917,2]
[329501327,1718400665164,-500.0,0.00021917,2]
[329501329,1718400665175,-500.0,0.00021917,2]
[329501331,1718400665202,-509.66947735,0.00021917,2]
[329501333,1718400665239,-500.0,0.00021917,2]
[329501335,1718400665256,-512.00820687,0.00021917,2]
[329501337,1718400665266,-924.01,0.00021917,2]
[329501339,1718400665280,-959.86,0.00021917,2]
[329501341,1718400665319,-5378.88,0.00021917,2]
[329501343,1718400665334,-581.62091181,0.00021917,2]
[329501345,1718400665368,-500.0,0.00021917,2]
[329501348,1718400665433,-863.32,0.00021917,2]
[329501350,1718400665474,-500.0,0.00021917,2]
[329501352,1718400665485,-500.0,0.00021917,2]
[329501354,1718400665498,-500.0,0.00021917,2]
[329501355,1718400665513,-500.0,0.00021917,2]
[329501358,1718400665532,-500.0,0.00021917,2]
[329501360,1718400665550,-500.0,0.00021917,2]
[329501364,1718400665580,-500.0,0.00021917,2]
[329501367,1718400665612,-500.0,0.00021917,2]
[329501369,1718400665644,-2643.09,0.00021917,2]
[329501372,1718400665676,-500.0,0.00021917,2]
[329501374,1718400665699,-500.0,0.00021917,2]
[329501376,1718400665720,-1270.3,0.00021917,2]
[329501377,1718400665739,-19571.65,0.00021917,2]
[329501380,1718400665757,-2037.62,0.00021917,2]
[329501382,1718400665767,-500.0,0.00021917,2]
[329501383,1718400665792,-500.0,0.00021917,2]
[329501386,1718400665823,-500.0,0.00021917,2]
[329501388,1718400665849,-500.0,0.00021917,2]
[329501390,1718400665876,-500.0,0.00021917,2]
[329501391,1718400665888,-500.0,0.00021917,2]
[329501393,1718400665900,-1813.89,0.00021917,2]
[329501396,1718400665917,-500.0,0.00021917,2]
[329501398,1718400665928,-781.3,0.00021917,2]
[329501400,1718400665941,-500.0,0.00021917,2]
[329501402,1718400665985,-721.63,0.00021917,2]
[329501406,1718400666030,-500.0,0.00021917,2]
[329501407,1718400666042,-521.91297914,0.00021917,2]
[329501409,1718400666061,-500.0,0.00021917,2]
[329501410,1718400666074,-500.0,0.00021917,2]
[329501413,1718400666100,-1565.92,0.00021917,2]
[329501414,1718400666119,-500.0,0.00021917,2]
[329501416,1718400666138,-2326.02,0.00021917,2]
[329501418,1718400666151,-500.0,0.00021917,2]
[329501421,1718400666171,-500.0,0.00021917,2]
[329501422,1718400666193,-2153.61,0.00021917,2]
[329501424,1718400666211,-500.0,0.00021917,2]
[329501426,1718400666228,-500.0,0.00021917,2]
[329501428,1718400666252,-574.57,0.00021917,2]
[329501429,1718400666266,-702.94,0.00021917,2]
[329501430,1718400666293,-500.0,0.00021917,2]
[329501433,1718400666309,-1214.62,0.00021917,2]
[329501435,1718400666335,-559.18,0.00021917,2]
[329501437,1718400666360,-610.6334651,0.00021917,2]
[329501439,1718400666394,-1050.32,0.00021917,2]
[329501441,1718400666412,-500.0,0.00021917,2]
[329501443,1718400666423,-503.64488152,0.00021917,2]
[329501445,1718400666439,-2151.67,0.00021917,2]
[329501446,1718400666454,-500.0,0.00021917,2]
[329501449,1718400666480,-1163.72,0.00021917,2]
[329501450,1718400666512,-500.0,0.00021917,2]
[329501452,1718400666524,-503.11309992,0.00021917,2]
[329501454,1718400666536,-909.7,0.00021917,2]
[329501456,1718400666547,-500.0,0.00021917,2]
[329501458,1718400666587,-500.0,0.00021917,2]
[329501460,1718400666601,-742.75,0.00021917,2]
[329501463,1718400666634,-500.0,0.00021917,2]
[329501465,1718400666652,-500.0,0.00021917,2]
[329501467,1718400666670,-511.35996646,0.00021917,2]
[329501470,1718400666690,-1734.79,0.00021917,2]
[329501472,1718400666710,-26267.42,0.00021917,2]
[329501474,1718400666745,-1387.27,0.00021917,2]
[329501477,1718400666761,-886.25,0.00021917,2]
[329501478,1718400666805,-500.0,0.00021917,2]
[329501480,1718400666821,-849.63,0.00021917,2]
[329501482,1718400666833,-500.0,0.00021917,2]
[329501484,1718400666846,-500.0,0.00021917,2]
[329501486,1718400666859,-2308.66,0.00021917,2]
[329501488,1718400666893,-5466.95,0.00021917,2]
[329501489,1718400666919,-541.22,0.00021917,2]
[329501491,1718400666937,-500.0,0.00021917,2]
[329501494,1718400666979,-500.0,0.00021917,2]
[329501497,1718400667007,-466.21013429,0.00021917,2]
[329501499,1718400667036,-500.0,0.00021917,2]
[329501501,1718400667063,-500.0,0.00021917,2]
[329501503,1718400667077,-500.0,0.00021917,2]
[329501505,1718400667089,-500.0,0.00021917,2]
[329501507,1718400667099,-5263.03,0.00021917,2]
[329501509,1718400667113,-500.0,0.00021917,2]
[329501511,1718400667134,-500.0,0.00021917,2]
[329501513,1718400667153,-942.41,0.00021917,2]
[329501515,1718400667179,-500.0,0.00021917,2]
[329501517,1718400667193,-515.17865317,0.00021917,2]
[329501520,1718400667228,-501.2655461,0.00021917,2]
[329501522,1718400667250,-500.0,0.00021917,2]
[329501524,1718400667269,-500.0,0.00021917,2]
[329501527,1718400667308,-1012.65,0.00021917,2]
[329501529,1718400667328,-545.62,0.00021917,2]
[329501531,1718400667386,-151.0,0.00021917,2]
[329501532,1718400667433,-508.81829984,0.00021917,2]
[329501534,1718400667444,-1838.08,0.00021917,2]
[329501537,1718400667460,-500.0,0.00021917,2]
[329501539,1718400667483,-698.72,0.00021917,2]
[329501541,1718400667495,-500.0,0.00021917,2]
[329501542,1718400667508,-504.49766924,0.00021917,2]
[329501544,1718400667519,-540.59698937,0.00021917,2]
[329501546,1718400667531,-1292.81,0.00021917,2]
[329501548,1718400667543,-500.0,0.00021917,2]
[329501550,1718400667556,-525.56962912,0.00021917,2]
[329501551,1718400667569,-500.0,0.00021917,2]
[329501553,1718400667591,-500.0,0.00021917,2]
[329501554,1718400667609,-636.88,0.00021917,2]
[329501555,1718400667623,-622.3281474,0.00021917,2]
[329501556,1718400667649,-637.79328125,0.00021917,2]
[329501557,1718400667717,-505.61089696,0.00021917,2]
[329501558,1718400667733,-199.8544108,0.00021917,2]
[329501559,1718400667744,-500.0,0.00021917,2]
[329501560,1718400667761,-500.0,0.00021917,2]
[329501561,1718400667772,-514.72641869,0.00021917,2]
[329501562,1718400667798,-500.0,0.00021917,2]
[329501563,1718400667810,-500.0,0.00021917,2]
[329501564,1718400667825,-557.56583359,0.00021917,2]
[329501566,1718400667838,-500.0,0.00021917,2]
[329501567,1718400667850,-500.0,0.00021917,2]
[329501568,1718400667863,-512.76766077,0.00021917,2]
[329501569,1718400667900,-500.0,0.00021917,2]
[329501570,1718400667914,-500.0,0.00021917,2]
[329501571,1718400667925,-4153.56,0.00021917,2]
[329501572,1718400667941,-519.83758261,0.00021917,2]
[329501573,1718400667960,-500.0,0.00021917,2]
[329501574,1718400667976,-3929.51,0.00021917,2]
[329501575,1718400667987,-520.37416406,0.00021917,2]
[329501576,1718400667999,-500.0,0.00021917,2]
[329501577,1718400668014,-500.0,0.00021917,2]
[329501578,1718400668078,-518.85490292,0.00021917,2]
[329501579,1718400668090,-151.0,0.00021917,2]
[329501580,1718400668104,-500.0,0.00021917,2]
[329501581,1718400668130,-500.0,0.00021917,2]
[329501582,1718400668144,-500.0,0.00021917,2]
[329501583,1718400668159,-500.0,0.00021917,2]
[329501584,1718400668172,-500.0,0.00021917,2]
[329501585,1718400668188,-1132.31,0.00021917,2]
[329501586,1718400668200,-500.0,0.00021917,2]
[329501587,1718400668216,-277.8017348,0.00021917,2]
[329501588,1718400668250,-502.85207053,0.00021917,2]
[329501589,1718400668276,-500.0,0.00021917,2]
[329501590,1718400668312,-500.0,0.00021917,2]
[329501591,1718400668345,-500.0,0.00021917,2]
[329501592,1718400668355,-520.76904507,0.00021917,2]
[329501593,1718400668381,-1124.83,0.00021917,2]
[329501594,1718400668394,-500.0,0.00021917,2]
[329501595,1718400668408,-1883.745257,0.00021917,2]
[329501596,1718400668420,-1883.745257,0.00021917,2]
[329501597,1718400668464,-1883.745257,0.00021917,2]
[329501598,1718400668478,-1391.92,0.00021917,2]
[329501599,1718400668524,-687.96,0.00021917,2]
[329501600,1718400668553,-151.0,0.00021917,2]
[329501601,1718400668564,-581.12,0.00021917,2]
[329501602,1718400668581,-1883.745257,0.00021917,2]
[329501603,1718400668593,-500.0,0.00021917,2]
[329501604,1718400668636,-1883.745257,0.00021917,2]
[329501605,1718400668651,-1883.745257,0.00021917,2]
[329501606,1718400668665,-500.0,0.00021917,2]
[329501607,1718400668676,-500.0,0.00021917,2]
[329501608,1718400668700,-500.0,0.00021917,2]
[329501609,1718400668717,-628.55,0.00021917,2]
[329501610,1718400668735,-5254.96,0.00021917,2]
[329501611,1718400668747,-797.48,0.00021917,2]
[329501612,1718400668776,-500.0,0.00021917,2]
[329501613,1718400668787,-500.0,0.00021917,2]
[329501614,1718400668810,-1240.94,0.00021918,2]
[329501615,1718400668849,-161.2,0.00021918,2]
[329501616,1718400668874,-250.0,0.00021918,2]
[329501617,1718400668898,-3638.892,0.00021927,2]
[329501618,1718400668914,-3736.324,0.00021927,2]
[329501619,1718400668926,-524.73039171,0.00021949,2]
[329501620,1718400668955,-2228.17729472,0.00022,10]
[329501621,1718400668984,-2135.30738,0.0002205,2]
[329501622,1718400669003,-1000.0,0.00022081,2]
[329501623,1718400669033,-500.0,0.00022081,2]
[329501624,1718400669057,-524.73039171,0.00022081,2]
[329501625,1718400669070,-182.17903324,0.00022091,2]
[329501626,1718400669090,-1000.0,0.000221,2]
[329501627,1718400669101,-500.0,0.0002218,3]
[329501628,1718400669122,-39239.96879635,0.00022181,2]
[329501629,1718400669445,-66810.86502861,0.00022181,2]
[329501630,1718400669486,-500.0,0.00022181,2]
[329501631,1718400669515,-269.38241397,0.00022181,2]
[329501632,1718400669563,-259.44000584,0.00022181,2]
[329501633,1718400776918,5153.26,0.00028,90]
[329501634,1718400886629,1559.19950933,0.00023,30]
[329501652,1718401203409,-150.0,0.00013899,2]
[329501653,1718401203458,-150.0,0.00013899,2]
[329501654,1718401203518,-300.0,0.00013899,2]
[329501655,1718401203581,-12998.5539,0.000139,2]
[329501656,1718401203607,-12462.1729,0.000139,2]
[329501657,1718401203640,-3140.28,0.000139,2]
[329501658,1718401203683,-209.63999371,0.00013999,2]
[329501659,1718401203773,-429.97845481,0.00013999,2]
[329501660,1718401203835,-832784.79964938,0.00014,2]
[329501661,1718401215491,-155.0,0.00013998,2]
[329501662,1718401215583,-155.0,0.00013998,2]
[329501663,1718401215645,-296.95413331,0.00013998,2]
[329501664,1718401215672,-667.21533428,0.00013999,2]
[329501665,1718401215710,-28566.45578093,0.00014,2]
[329501666,1718401243109,-1429.16946759,0.00013898,2]
[329501668,1718401248552,-1429.16946759,0.00013898,2]
[329501669,1718401250764,-1429.16946759,0.00013898,2]
[329501670,1718401252752,-1429.16946759,0.00013898,2]
[329501671,1718401254090,-1429.16946759,0.00013898,2]
[329501672,1718401255243,-364.3471391,0.00013897,2]
[329501673,1718401255287,-1064.82232849,0.00013898,2]
[329501674,1718401256468,-1429.16946759,0.00013898,2]
[329501675,1718401257621,-1429.16946759,0.00013898,2]
[329501676,1718401258600,-1429.16946759,0.00013898,2]
[329501677,1718401259631,-104.89296824,0.00013898,2]
[329501678,1718401259668,-1324.27649935,0.000139,2]
[329501679,1718401260657,-1429.16946759,0.000139,2]
[329501680,1718401261656,-1429.16946759,0.000139,2]
[329501681,1718401262596,-1429.16946759,0.000139,2]
[329501682,1718401263618,-1429.16946759,0.000139,2]
[329501683,1718401264689,-1429.16946759,0.000139,2]
[329501684,1718401265554,-1429.16946759,0.000139,2]
[329501685,1718401266732,-1429.16946759,0.000139,2]
[329501686,1718401267673,-1429.16946759,0.000139,2]
[329501687,1718401270398,-113.66565993,0.000139,2]
[329501688,1718401270436,-1274.16946759,0.00014,2]
[329501689,1718401270512,-41.33434007,0.00014,2]
[329501690,1718401271015,-113.66565993,0.00014,2]
[329501691,1718401288841,234.3543064,0.000139,2]
[329501699,1718401511047,-364.15605304,0.00014999,2]
[329501700,1718401511166,-300.0,0.00014999,2]
[329501701,1718401511210,-1238.18535387,0.00014999,2]
[329501702,1718401511254,-97.65859309,0.00015,2]
[329501703,1718401512955,-2000.0,0.00015,2]
[329501704,1718401514470,-2000.0,0.00015,2]
[329501705,1718401515869,-2000.0,0.00015,2]
[329501706,1718401517571,-2000.0,0.00015,2]
[329501707,1718401525174,-2000.0,0.00015,2]
[329501708,1718401526480,-2000.0,0.00015,2]
[329501711,1718401749219,-499.99545913,0.00015,2]
[329501712,1718401774452,-6844.41320286,0.00015,2]
[329501719,1718401833926,-277.321,0.00015,2]
[329501723,1718401833954,-149463.46792713,0.00015,2]
[329501726,1718401833984,-411.57,0.00016962,2]
[329501729,1718401834034,-10843.43114307,0.00017259,2]
[329501730,1718401834068,-150.0,0.00017507,2]
[329501731,1718401834082,-691.61,0.00017534,2]
[329501732,1718401834104,-197.19,0.00017534,2]
[329501733,1718401834117,-8689.71006527,0.00017583,2]
[329501734,1718401834144,-2117.19,0.00018271,2]
[329501735,1718401834168,-150.99,0.00018271,2]
[329501736,1718401834196,-1327.38,0.00018271,6]
[329501737,1718401834207,-163.0,0.00018271,2]
[329501738,1718401834244,-172.3,0.00018733,2]
[329501739,1718401834262,-250.0,0.00018778,2]
[329501740,1718401834276,-188.98,0.00018795,2]
[329501741,1718401834351,-250.0,0.00018816,2]
[329501742,1718401834365,-998.31,0.0001883,2]
[329501743,1718401834381,-220.36,0.00018833,2]
[329501744,1718401834405,-15358.07,0.00018849,2]
[329501745,1718401834473,-231.24,0.00018872,2]
[329501746,1718401834490,-411.57,0.00019226,2]
[329501747,1718401834527,-865.0,0.000193,2]
[329501748,1718401834567,-653.36,0.00019361,2]
[329501749,1718401834604,-653.36,0.00019366,2]
[329501750,1718401834621,-653.36,0.00019371,2]
[329501751,1718401834637,-653.36,0.00019376,2]
[329501752,1718401834659,-653.36,0.00019381,2]
[329501753,1718401834678,-653.36,0.00019386,2]
[329501754,1718401834692,-653.36,0.00019391,2]
[329501755,1718401834706,-653.36,0.00019396,2]
[329501756,1718401834742,-3805.0,0.000194,2]
[329501757,1718401834771,-653.36,0.00019402,2]
[329501758,1718401834783,-653.36,0.00019407,2]
[329501759,1718401834797,-653.36,0.00019412,2]
[329501760,1718401834825,-653.36,0.00019417,2]
[329501761,1718401834847,-653.36,0.00019422,2]
[329501762,1718401834875,-653.36,0.00019427,2]
[329501763,1718401834922,-653.36,0.00019432,2]
[329501764,1718401834965,-653.36,0.00019437,2]
[329501765,1718401834988,-653.36,0.00019442,2]
[329501766,1718401835022,-653.36,0.00019447,2]
[329501767,1718401835080,-653.36,0.00019452,2]
[329501768,1718401835138,-653.36,0.00019458,2]
[329501769,1718401835218,-172.38,0.00020647,2]
[329501770,1718401835242,-258.06,0.00020867,2]
[329501771,1718401835268,-164.35,0.00020867,2]
[329501772,1718401835315,-158.96,0.00020867,2]
[329501773,1718401835346,-423.01,0.00020884,2]
[329501774,1718401835357,-323.45,0.00020884,2]
[329501775,1718401835378,-150.0,0.00020884,2]
[329501776,1718401835414,-328.14,0.00020884,2]
[329501777,1718401835444,-164.35,0.00020978,2]
[329501778,1718401835469,-201.799218,0.00021,2]
[329501779,1718401835488,-1250.0,0.00021,2]
[329501780,1718401835519,-164.35,0.00021078,2]
[329501781,1718401835536,-150.0,0.00021078,2]
[329501782,1718401835550,-998.31,0.00021184,2]
[329501783,1718401835608,-411.57,0.0002149,2]
[329501784,1718401835627,-157.72862368,0.00021607,2]
[329501785,1718401835652,-223.74272517,0.00021607,2]
[329501786,1718401835677,-543.58204517,0.00021607,2]
[329501787,1718401835691,-320.32236178,0.00021607,2]
[329501788,1718401835723,-231.24,0.00021611,2]
[329501789,1718401835734,-219.76,0.00021616,2]
[329501790,1718401835747,-164.35,0.00021688,2]
[329501791,1718401835758,-150.0,0.00021688,2]
[329501792,1718401835780,-14501.63660389,0.000217,2]
[329501793,1718401835790,-11740.0,0.000217,5]
[329501794,1718401835801,-150.0,0.00021706,2]
[329501795,1718401835856,-353.74,0.00021706,2]
[329501796,1718401835867,-150.0,0.00021706,2]
[329501797,1718401835880,-846.02,0.00021706,2]
[329501798,1718401835899,-150.0,0.00021706,2]
[329501799,1718401835909,-353.74,0.00021706,2]
[329501800,1718401835924,-526.85,0.00021706,2]
[329501801,1718401835960,-353.74,0.00021706,2]
[329501802,1718401835988,-150.0,0.00021706,2]
[329501803,1718401836001,-164.35,0.00021706,2]
[329501804,1718401836020,-423.01,0.00021706,2]
[329501805,1718401836038,-300.0,0.00021706,2]
[329501806,1718401836073,-300.0,0.00021706,2]
[329501807,1718401836092,-300.0,0.00021706,2]
[329501808,1718401836103,-846.02,0.00021706,2]
[329501809,1718401836149,-328.7,0.00021706,2]
[329501810,1718401836189,-597.74,0.00021706,2]
[329501811,1718401836227,-353.74,0.00021706,2]
[329501812,1718401836245,-353.74,0.00021706,2]
[329501813,1718401836258,-346.05,0.00021706,2]
[329501814,1718401836276,-795.14,0.00021706,2]
[329501815,1718401836288,-39575.12365557,0.00021706,2]
[329501817,1718401847631,-369.3805507,0.00021706,2]
[329501819,1718401847646,-16538.1143,0.00021706,2]
[329501821,1718401847684,-17446.31544845,0.00021706,2]
[329501823,1718401847704,-1285.62803988,0.00021706,2]
[329501826,1718401847722,-880.30262194,0.00021706,2]
[329501866,1718401848866,-2591.71049796,0.00021706,2]
[329501869,1718401848880,-2012.50728,0.00021706,2]
[329501872,1718401848906,-759.01062136,0.00021706,2]
[329501878,1718401849063,-0.04523177,0.00021706,2]
[329501880,1718401849077,-336780.27743981,0.00021706,2]
[329501883,1718401849148,-4347.53247171,0.00021706,2]
[329501884,1718401849169,-24734.3743,0.00021707,2]
[329501885,1718401849192,-180.16890817,0.00021707,2]
[329501886,1718401849214,-851.56,0.0002174,2]
[329501887,1718401849272,-417.77,0.0002174,2]
[329501888,1718401849303,-166.00817238,0.0002179,2]
[329501889,1718401849352,-151.68,0.0002179,2]
[329501890,1718401849364,-151.0,0.000218,2]
[329501891,1718401849408,-297470.107082,0.000218,2]
[329501892,1718401849436,-500.0,0.00021807,2]
[329501893,1718401849470,-1000.0,0.00021817,2]
[329501894,1718401849505,-10000.0,0.00021817,2]
[329501895,1718401849525,-151.68,0.00021887,2]
[329501896,1718401849559,-14165.2431944,0.0002189,2]
[329501897,1718401849571,-56660.9727775,0.00021897,2]
[329501898,1718401849588,-3501.0,0.000219,2]
[329501899,1718401849598,-151.68,0.00021907,2]
[329501900,1718401849610,-151.0,0.00021907,2]
[329501901,1718401849668,-151.0,0.00021907,2]
[329501902,1718401849708,-151.0,0.00021907,2]
[329501903,1718401849719,-151.0,0.00021907,2]
[329501904,1718401849790,-183.98464022,0.00021915,2]
[329501905,1718401849814,-22.78304515,0.00021915,2]
[329501906,1718401849828,-543.0,0.00021917,2]
[329501907,1718401849877,-500.0,0.00021917,2]
[329501908,1718401849889,-643.26756586,0.00021917,2]
[329501909,1718401849916,-500.0,0.00021917,2]
[329501910,1718401849939,-500.0,0.00021917,2]
[329501911,1718401849957,-500.0,0.00021917,2]
[329501912,1718401849985,-500.0,0.00021917,2]
[329501913,1718401849997,-505.78667648,0.00021917,2]
[329501914,1718401850029,-500.0,0.00021917,2]
[329501915,1718401850095,-66091.96473486,0.00021917,2]
[329501916,1718401850120,-500.0,0.00021917,2]
[329501917,1718401850141,-500.0,0.00021917,2]
[329501918,1718401850155,-500.0,0.00021917,2]
[329501919,1718401850181,-500.0,0.00021917,2]
[329501920,1718401850217,-500.0,0.00021917,2]
[329501921,1718401850237,-587.54802076,0.00021917,2]
[329501922,1718401850249,-500.0,0.00021917,2]
[329501923,1718401850300,-500.0,0.00021917,2]
[329501924,1718401850370,-500.0,0.00021917,2]
[329501925,1718401850417,-506.71150705,0.00021917,2]
[329501926,1718401850456,-500.0,0.00021917,2]
[329501927,1718401850473,-273.99464657,0.00021917,2]
[329501928,1718401850496,-500.0,0.00021917,2]
[329501929,1718401850507,-564.26011105,0.00021917,2]
[329501930,1718401850536,-485.19900676,0.00021917,2]
[329501931,1718401850570,-500.0,0.00021917,2]
[329501932,1718401850608,-500.0,0.00021917,2]
[329501934,1718401850620,-500.0,0.00021917,2]
[329501936,1718401850634,-500.0,0.00021917,2]
[329501939,1718401850669,-500.0,0.00021917,2]
[329501941,1718401850681,-500.0,0.00021917,2]
[329501943,1718401850694,-500.0,0.00021917,2]
[329501945,1718401850711,-200.0,0.00021917,2]
[329501948,1718401850751,-502.7747004,0.00021917,2]
[329501949,1718401850764,-542.41133973,0.00021917,2]
[329501951,1718401850796,-500.0,0.00021917,2]
[329501953,1718401850841,-518.15006801,0.00021917,2]
[329501955,1718401850870,-512.44639562,0.00021917,2]
[329501956,1718401850899,-505.54497262,0.00021917,2]
[329501958,1718401850910,-514.70907645,0.00021917,2]
[329501961,1718401850942,-337.42413615,0.00021917,2]
[329501963,1718401850955,-513.09997383,0.00021917,2]
[329501964,1718401850986,-500.0,0.00021917,2]
[329501966,1718401850998,-528.20770664,0.00021917,2]
[329501968,1718401851024,-500.0,0.00021917,2]
[329501970,1718401851042,-501.28822832,0.00021917,2]
[329501972,1718401851069,-500.0,0.00021917,2]
[329501974,1718401851082,-500.0,0.00021917,2]
[329501975,1718401851096,-500.0,0.00021917,2]
[329501976,1718401851115,-309.41687346,0.00021917,2]
[329501977,1718401851156,-500.0,0.00021917,2]
[329501978,1718401851184,-232.04784302,0.00021917,2]
[329501979,1718401851200,-500.0,0.00021917,2]
[329501980,1718401851240,-526.89197255,0.00021917,2]
[329501981,1718401851288,-500.0,0.00021917,2]
[329501982,1718401851321,-583.99159119,0.00021917,2]
[329501983,1718401851352,-500.0,0.00021917,2]
[329501984,1718401851375,-500.0,0.00021917,2]
[329501985,1718401851392,-506.68734268,0.00021917,2]
[329501986,1718401851436,-151.0,0.00021917,2]
[329501987,1718401851460,-500.0,0.00021917,2]
[329501988,1718401851471,-276.57667568,0.00021917,2]
[329501989,1718401851485,-322.22,0.00021917,2]
[329501990,1718401851499,-151.0,0.00021917,2]
[329501991,1718401851511,-500.0,0.00021917,2]
[329501992,1718401851524,-500.0,0.00021917,2]
[329501993,1718401851576,-500.0,0.00021917,2]
[329501994,1718401851796,-500.0,0.00021917,2]
[329501995,1718401851817,-500.0,0.00021917,2]
[329501996,1718401851830,-500.0,0.00021917,2]
[329501997,1718401851841,-500.0,0.00021917,2]
[329501998,1718401851868,-500.0,0.00021917,2]
[329501999,1718401851902,-500.0,0.00021917,2]
[329502000,1718401851937,-500.0,0.00021917,2]
[329502001,1718401851965,-500.0,0.00021917,2]
[329502002,1718401851975,-500.0,0.00021917,2]
[329502003,1718401851988,-500.0,0.00021917,2]
[329502005,1718401852038,-500.0,0.00021917,2]
[329502006,1718401852072,-500.0,0.00021917,2]
[329502007,1718401852098,-500.0,0.00021917,2]
[329502010,1718401852115,-500.0,0.00021917,2]
[329502012,1718401852142,-500.0,0.00021917,2]
[329502014,1718401852172,-500.0,0.00021917,2]
[329502016,1718401852183,-500.0,0.00021917,2]
[329502018,1718401852194,-367.5,0.00021917,2]
[329502020,1718401852219,-504.00845266,0.00021917,2]
[329502021,1718401852236,-500.0,0.00021917,2]
[329502023,1718401852273,-500.0,0.00021917,2]
[329502024,1718401852315,-253.74,0.00021917,2]
[329502026,1718401852328,-500.0,0.00021917,2]
[329502027,1718401852346,-500.0,0.00021917,2]
[329502029,1718401852368,-508.9087821,0.00021917,2]
[329502031,1718401852383,-500.0,0.00021917,2]
[329502033,1718401852395,-505.48438921,0.00021917,2]
[329502035,1718401852412,-520.96934023,0.00021917,2]
[329502038,1718401852426,-500.0,0.00021917,2]
[329502039,1718401852444,-500.0,0.00021917,2]
[329502042,1718401852458,-241.17092663,0.00021917,2]
[329502044,1718401852499,-500.0,0.00021917,2]
[329502047,1718401852540,-500.0,0.00021917,2]
[329502048,1718401852555,-500.0,0.00021917,2]
[329502050,1718401852572,-500.0,0.00021917,2]
[329502051,1718401852605,-500.0,0.00021917,2]
[329502053,1718401852615,-507.37496217,0.00021917,2]
[329502055,1718401852649,-500.0,0.00021917,2]
[329502057,1718401852676,-510.48043023,0.00021917,2]
[329502059,1718401852693,-151.0,0.00021917,2]
[329502061,1718401852720,-151.0,0.00021917,2]
[329502064,1718401852736,-500.0,0.00021917,2]
[329502066,1718401852802,-151.77906688,0.00021917,2]
[329502068,1718401852816,-505.17612017,0.00021917,2]
[329502070,1718401852831,-500.0,0.00021917,2]
[329502073,1718401852878,-500.0,0.00021917,2]
[329502076,1718401852916,-500.0,0.00021917,2]
[329502078,1718401852946,-500.0,0.00021917,2]
[329502080,1718401852960,-500.0,0.00021917,2]
[329502083,1718401852975,-416.74974784,0.00021917,2]
[329502086,1718401853000,-500.0,0.00021917,2]
[329502088,1718401853011,-500.0,0.00021917,2]
[329502090,1718401853022,-500.0,0.00021917,2]
[329502092,1718401853040,-507.69204984,0.00021917,2]
[329502094,1718401853068,-500.0,0.00021917,2]
[329502095,1718401853081,-505.87902115,0.00021917,2]
[329502097,1718401853094,-500.0,0.00021917,2]
[329502099,1718401853107,-500.0,0.00021917,2]
[329502101,1718401853121,-500.0,0.00021917,2]
[329502103,1718401853133,-215.81376621,0.00021917,2]
[329502105,1718401853160,-500.0,0.00021917,2]
[329502108,1718401853185,-500.0,0.00021917,2]
[329502109,1718401853205,-500.0,0.00021917,2]
[329502112,1718401853217,-500.0,0.00021917,2]
[329502113,1718401853238,-500.0,0.00021917,2]